bitfinex/quotes_SOLUSD_20250814
["timestamp","ask_amount","ask_price","bid_price","bid_amount"]
[1755178166108,26.0,193.13,193.09,15.10621557]
[1755178166514,0.66,193.12,193.09,0.03]
[1755178166727,0.66,193.11,193.05,0.03]
[1755178166908,0.66,193.11,193.0,0.68]
[1755178167404,0.66,193.11,192.98,37.24]
[1755178167710,26.0,193.07,192.98,37.24]
[1755178167915,0.66,193.06,192.98,37.24]
[1755178168816,0.66,193.06,192.99,15.13621557]
[1755178169012,0.66,193.06,193.01,15.10621557]
[1755178169326,0.66,193.05,192.99,0.03]
[1755178169731,26.0,193.02,192.99,0.03]
[1755178169936,0.66,193.01,192.99,0.03]
[1755178170542,0.65,193.01,192.99,0.03]
[1755178170706,0.65,193.01,192.99,48.63]
[1755178171325,26.0,193.02,192.99,48.63]
[1755178171701,1.03621574,193.01,192.99,48.63]
[1755178172822,0.65,193.0,192.99,48.63]
[1755178173115,1.03621574,193.01,192.99,48.63]
[1755178173320,1.68621574,193.01,192.99,48.63]
[1755178173718,1.03632312,192.99,192.98,37.24]
[1755178173921,1.03632312,192.99,192.91,0.2]
[1755178174120,0.65,192.98,192.91,0.2]
[1755178174321,26.0,192.94,192.79,0.66]
[1755178174523,4.26938575,192.93,192.76,0.69]
[1755178174707,26.0,192.94,192.8,15.10621557]
[1755178174708,0.65,192.92,192.8,15.10621557]
[1755178174909,0.65,192.92,192.79,0.66]
[1755178175225,0.65,192.92,192.84,48.54]
[1755178175402,0.65,192.95,192.85,15.10621557]
[1755178175602,1.03659168,192.94,192.85,15.76621557]
[1755178176438,1.03637682,192.98,192.87,15.10621557]
[1755178176730,1.03637682,192.98,192.89,15.10621557]
[1755178176901,3.62731888,192.98,192.89,15.10621557]
[1755178177102,0.65,192.97,192.86,15.10621557]
[1755178177512,26.0,192.95,192.86,15.10621557]
[1755178177718,4.27807089,192.94,192.84,48.54]
[1755178177916,4.27807089,192.94,192.85,15.10621557]
[1755178178511,3.62807089,192.94,192.85,15.76621557]
[1755178178912,1.03659168,192.94,192.86,0.66]
[1755178179411,2.59067991,193.0,192.87,15.10621557]
[1755178179617,3.62694934,193.0,192.89,15.10621557]
[1755178179933,3.62694934,193.0,192.87,15.10621557]
[1755178179934,1.03626943,193.0,192.91,15.10621557]
[1755178180241,1.03626943,193.0,192.93,15.10621557]
[1755178180242,3.626943,193.0,192.93,15.10621557]
[1755178180445,1.03622133,193.01,192.94,0.66]
[1755178180611,1.0360547,193.04,192.95,15.10621557]
[1755178180809,0.06,193.05,192.97,15.10621557]
[1755178181008,0.06,193.05,192.99,15.10621557]
[1755178181207,0.06,193.05,193.01,15.10621557]
[1755178181436,0.06,193.05,193.03,15.10621557]
[1755178181639,0.06,193.05,193.0,48.46]
[1755178181812,0.06,193.05,193.01,15.76621557]
[1755178182007,0.06,193.05,193.03,15.10621557]
[1755178182244,0.06,193.05,193.04,15.76621557]
[1755178182729,0.06,193.05,193.04,15.10621557]
[1755178182938,0.06,193.05,193.04,63.54621557]
[1755178184613,0.06,193.05,193.04,64.20621557]
[1755178184912,0.06,193.05,192.96,0.66]
[1755178184913,0.71,193.05,192.96,0.66]
[1755178185125,0.71,193.05,192.93,0.66]
[1755178185309,0.71,193.05,192.9,0.66]
[1755178185934,3.62619145,193.04,192.91,15.10621557]
[1755178186136,0.65,193.03,192.93,15.10621557]
[1755178186639,0.65,193.03,192.87,15.59]
[1755178186640,0.65,193.03,192.86,37.28]
[1755178186824,0.65,193.03,192.87,15.10621557]
[1755178187243,0.65,193.03,192.88,0.66]
[1755178187416,0.65,193.03,192.89,15.10621557]
[1755178187736,26.0,192.99,192.89,15.10621557]
[1755178187933,26.0,192.99,192.91,15.10621557]
[1755178188135,26.0,192.95,192.91,15.10621557]
[1755178188525,26.0,192.95,192.88,15.59]
[1755178188526,26.0,192.95,192.93,15.10621557]
[1755178188912,26.0,192.95,192.92,48.34]
[1755178189530,26.0,192.99,192.93,15.10621557]
[1755178189848,1.03637682,192.98,192.93,15.10621557]
[1755178190229,3.62731888,192.98,192.93,15.10621557]
[1755178190424,26.0,192.95,192.9,15.10621557]
[1755178190836,26.0,192.95,192.87,15.10621557]
[1755178192056,1.03659168,192.94,192.89,15.10621557]
[1755178192240,3.62807089,192.94,192.89,15.10621557]
[1755178192436,3.62807089,192.94,192.88,48.3]
[1755178192745,3.62807089,192.94,192.89,15.10621557]
[1755178192947,1.03659168,192.94,192.89,15.10621557]
[1755178193149,1.03659168,192.94,192.89,15.76621557]
[1755178193524,1.03659168,192.94,192.89,15.10621557]
[1755178193722,1.03652889,192.96,192.91,15.10621557]
[1755178193927,3.62731888,192.98,192.91,15.10621557]
[1755178194151,3.62731888,192.98,192.92,48.26]
[1755178194430,3.62731888,192.98,192.93,15.10621557]
[1755178194630,27.03637682,192.98,192.93,15.76621557]
[1755178194830,1.03637682,192.98,192.94,0.66]
[1755178195138,80.63622202,193.01,192.95,0.66]
[1755178195354,1.09611874,193.03,192.95,0.66]
[1755178195956,0.06,193.03,192.97,15.10621557]
[1755178196254,0.06,193.03,192.99,15.10621557]
[1755178196452,0.06,193.03,193.01,15.10621557]
[1755178196639,0.06,193.03,193.02,15.76621557]
[1755178197545,0.06,193.03,193.02,15.22903169]
[1755178198464,0.06,193.03,193.02,20.40984196]
[1755178198756,0.06,193.03,193.02,15.22903169]
[1755178198958,0.06,193.03,192.98,0.66]
[1755178199162,0.06,193.03,192.99,48.18]
[1755178199457,0.06,193.03,193.01,15.10621557]
[1755178199861,0.06,193.03,193.01,15.76621557]
[1755178200046,0.06,193.03,193.01,15.10621557]
[1755178200367,0.06,193.07,193.04,25.10621557]
[1755178200538,0.06,193.09,193.05,111.20621557]
[1755178200738,0.72,193.14,193.05,37.28]
[1755178200963,0.72,193.13,193.06,63.24621557]
[1755178201266,0.72,193.13,193.06,48.14]
[1755178201444,0.72,193.13,193.07,48.12]
[1755178201639,0.72,193.13,193.08,48.12]
[1755178201835,0.72,193.13,193.09,15.10621557]
[1755178202056,26.0,193.16,193.05,37.28]
[1755178202057,8.80327273,193.11,193.05,37.28]
[1755178202257,26.0,193.08,193.06,48.12]
[1755178202457,4.344877,193.11,193.07,15.10621557]
[1755178202640,3.624877,193.11,193.07,15.10621557]
[1755178202843,0.72,193.1,193.05,37.28]
[1755178203168,3.624877,193.11,193.06,15.10621557]
[1755178203354,0.72,193.1,193.05,37.28]
[1755178203541,0.72,193.1,192.99,0.66]
[1755178203542,0.72,193.09,192.95,0.66]
[1755178203936,26.0,193.08,192.94,37.28]
[1755178204164,26.0,193.04,192.94,37.28]
[1755178204392,26.72,193.04,192.95,48.08]
[1755178204553,26.0,193.04,192.96,15.10621557]
[1755178204739,0.72,193.13,192.98,30.64621557]
[1755178205076,1.03562551,193.12,193.0,15.10621557]
[1755178205369,0.72,193.11,193.01,48.06]
[1755178205561,0.72,193.11,193.02,15.10621557]
[1755178205773,1.03562551,193.12,193.02,15.76621557]
[1755178206068,2.130554,193.27,193.06,15.10621557]
[1755178206069,1.03530386,193.18,193.06,15.10621557]
[1755178206235,0.72,193.17,193.08,15.10621557]
[1755178206653,1.03503596,193.23,193.1,30.64621557]
[1755178206851,1.03503596,193.23,193.14,30.64621557]
[1755178207060,1.03503596,193.23,193.16,15.10621557]
[1755178207274,27.03503596,193.23,193.16,15.10621557]
[1755178207580,1.03503596,193.23,193.16,15.10621557]
[1755178207743,1.03503596,193.23,193.18,15.10621557]
[1755178208067,3.62243841,193.24,193.16,15.10621557]
[1755178208449,26.0,193.23,193.18,15.10621557]
[1755178208974,3.62243841,193.24,193.18,15.10621557]
[1755178209169,1.0349824,193.24,193.18,15.10621557]
[1755178209873,0.1,193.25,193.2,30.64621557]
[1755178210070,0.1,193.25,193.24,15.10621557]
[1755178210279,0.1,193.25,193.24,63.08621557]
[1755178210569,0.06,193.27,193.24,79.28621557]
[1755178210772,0.06,193.27,193.26,15.10621557]
[1755178210940,0.06,193.27,193.26,15.76621557]
[1755178211662,0.06,193.27,193.26,63.72621557]
[1755178211869,0.06,193.27,193.19,15.10621557]
[1755178211870,1.09482175,193.27,193.19,15.10621557]
[1755178212043,1.09482175,193.27,193.26,15.10621557]
[1755178212044,0.06,193.27,193.26,15.10621557]
[1755178212247,0.06,193.27,193.26,63.04621557]
[1755178212442,0.06,193.27,193.26,63.70621557]
[1755178213041,0.06,193.27,193.26,63.04621557]
[1755178214455,0.78,193.27,193.26,15.10621557]
[1755178214770,0.78,193.27,193.26,62.98621557]
[1755178214978,0.06,193.27,193.26,62.98621557]
[1755178215183,0.06,193.27,193.26,63.64621557]
[1755178215551,0.06,193.27,193.26,62.98621557]
[1755178215884,0.06,193.27,193.26,63.64621557]
[1755178216183,0.06,193.27,193.26,62.98621557]
[1755178216386,0.06,193.27,193.26,63.64621557]
[1755178216580,0.06,193.27,193.26,15.10621557]
[1755178216748,0.06,193.27,193.26,62.94621557]
[1755178217353,0.06,193.27,193.26,63.60621557]
[1755178217896,0.06,193.29,193.27,15.10621557]
[1755178218066,0.06,193.29,193.28,15.76621557]
[1755178218773,0.06,193.29,193.28,36.48005662]
[1755178219071,0.06,193.31,193.3,66.64621557]
[1755178219391,0.06,193.31,193.3,105.10621557]
[1755178219558,1.03396577,193.43,193.33,30.64621557]
[1755178219749,1.03396577,193.43,193.35,15.10621557]
[1755178219945,0.72,193.42,193.35,15.10621557]
[1755178220154,0.72,193.42,193.36,47.78]
[1755178220354,10.0,193.57,193.36,47.78]
[1755178220355,0.72,193.46,193.37,15.10621557]
[1755178221244,0.72,193.5,193.39,15.10621557]
[1755178221446,0.72,193.5,193.39,15.76621557]
[1755178221865,1.03353831,193.51,193.46,15.54]
[1755178222078,1.75353831,193.51,193.47,62.84621557]
[1755178222246,1.03364514,193.49,193.47,62.84621557]
[1755178222446,0.72,193.48,193.47,62.84621557]
[1755178222946,0.72,193.48,193.47,47.74]
[1755178223151,0.72,193.48,193.39,15.10621557]
[1755178223574,0.72,193.48,193.35,15.10621557]
[1755178223844,0.72,193.48,193.41,30.64621557]
[1755178224243,1.033752,193.47,193.43,15.10621557]
[1755178224553,0.72,193.46,193.43,15.10621557]
[1755178224751,1.033752,193.47,193.43,15.10621557]
[1755178225473,0.72,193.46,193.43,15.10621557]
[1755178226065,0.72,193.45,193.43,15.10621557]
[1755178226270,26.0,193.49,193.44,47.66]
[1755178226458,26.0,193.49,193.38,0.66]
[1755178226459,26.72,193.49,193.45,47.66]
[1755178226953,3.61663652,193.55,193.33,0.66]
[1755178226954,0.72,193.48,193.33,0.66]
[1755178227155,0.72,193.48,193.31,15.54]
[1755178227374,0.72,193.48,193.35,47.66]
[1755178227764,26.0,193.44,193.26,37.22]
[1755178228115,10.0,193.52,193.21,10.0]
[1755178228116,26.0,193.39,193.21,37.2]
[1755178228396,3.6200031,193.37,193.27,15.509086]
[1755178228578,0.72,193.36,193.27,15.509086]
[1755178228769,0.72,193.36,193.21,37.2]
[1755178228976,26.0,193.31,193.21,37.2]
[1755178229171,26.0,193.26,193.1,37.2]
[1755178229474,0.72,193.25,193.1,37.2]
[1755178229679,26.0,193.22,193.1,37.2]
[1755178230005,0.72,193.21,193.1,37.2]
[1755178230312,1.03519668,193.2,193.1,52.74]
[1755178230798,26.0,193.22,193.12,15.54]
[1755178231006,1.03487529,193.26,193.13,15.77621557]
[1755178231180,1.03487529,193.26,193.14,0.67]
[1755178231502,1.03477891,193.28,193.21,0.03]
[1755178231677,0.66,193.29,193.21,0.03]
[1755178231678,0.66,193.29,193.23,15.10621557]
[1755178231880,26.0,193.27,193.23,15.10621557]
[1755178232095,0.66,193.26,193.22,47.6]
[1755178232284,1.03466114,193.3,193.23,15.10621557]
[1755178232695,1.03466114,193.3,193.22,47.6]
[1755178232696,0.66,193.29,193.22,47.6]
[1755178232898,0.66,193.29,193.21,0.03]
[1755178233580,26.0,193.26,193.21,0.03]
[1755178234081,26.66,193.29,193.21,0.03]
[1755178234286,3.62187612,193.27,193.21,0.03]
[1755178234589,0.66,193.26,193.22,47.56]
[1755178234796,28.58659416,193.31,193.23,15.10621557]
[1755178234797,1.03476541,193.29,193.23,15.10621557]
[1755178235278,1.03466093,193.31,193.23,15.10621557]
[1755178235992,0.66,193.3,193.21,0.03]
[1755178236183,26.0,193.27,193.24,47.54]
[1755178237213,7.787059,193.3,193.24,47.54]
[1755178237214,1.03471467,193.29,193.24,47.54]
[1755178237379,27.03464999,193.31,193.25,15.10621557]
[1755178237573,1.03464999,193.31,193.25,15.10621557]
[1755178238204,1.03453792,193.33,193.25,15.10621557]
[1755178238502,0.66,193.35,193.27,15.10621557]
[1755178238691,79.6,193.34,193.25,15.10621557]
[1755178239020,26.0,193.31,193.25,15.10621557]
[1755178239178,79.6,193.34,193.25,15.10621557]
[1755178239378,79.6,193.34,193.27,15.10621557]
[1755178239585,79.6,193.34,193.29,15.10621557]
[1755178239781,79.6,193.34,193.31,15.10621557]
[1755178240578,80.63445191,193.34,193.31,15.10621557]
[1755178241010,26.0,193.32,193.3,47.5]
[1755178241310,26.0,193.32,193.31,62.56621557]
[1755178241489,79.6,193.34,193.32,15.10621557]
[1755178241896,15.510689,193.48,193.37,41.10621557]
[1755178242098,15.510689,193.48,193.39,15.10621557]
[1755178242415,1.69340664,193.54,193.41,20.27637133]
[1755178242586,4.27685192,193.54,193.36,0.54]
[1755178242781,0.66,193.53,193.38,15.10621557]
[1755178243318,0.66,193.53,193.4,15.10621557]
[1755178243532,0.66,193.53,193.42,15.10621557]
[1755178243735,0.66,193.53,193.44,15.10621557]
[1755178244518,3.61719718,193.52,193.44,15.10621557]
[1755178244725,0.66,193.51,193.44,15.10621557]
[1755178245499,26.0,193.49,193.38,15.10621557]
[1755178245700,0.66,193.48,193.38,15.10621557]
[1755178245906,0.66,193.48,193.36,15.10621557]
[1755178246210,30.29358127,193.47,193.37,47.4]
[1755178246521,30.29358127,193.47,193.24,37.22]
[1755178246522,4.30748627,193.46,193.38,47.38]
[1755178246730,30.29364806,193.45,193.24,52.723475]
[1755178246919,26.0,193.43,193.24,37.22]
[1755178247125,1.30626202,193.42,193.24,37.22]
[1755178247303,30.30637755,193.41,193.24,37.22]
[1755178247502,4.30637755,193.4,193.21,0.03]
[1755178247841,8.78780045,193.45,193.21,0.03]
[1755178247842,36.0,193.38,193.21,0.03]
[1755178248025,26.0,193.36,193.21,0.03]
[1755178248201,4.30637755,193.35,193.21,0.03]
[1755178248403,30.30637755,193.34,193.21,0.03]
[1755178248634,26.0,193.3,193.14,0.03]
[1755178248797,0.66,193.29,193.14,0.03]
[1755178249004,0.66,193.29,193.15,0.54]
[1755178249206,1.30669667,193.29,193.16,47.36]
[1755178249537,3.64615131,193.28,193.16,47.36]
[1755178249702,27.30676359,193.27,193.16,47.36]
[1755178250016,26.0,193.21,193.14,0.03]
[1755178250218,3.64615131,193.2,193.14,0.03]
[1755178250533,1.81178175,193.18,193.14,0.03]
[1755178250747,0.66,193.17,193.14,0.03]
[1755178250942,0.66,193.16,193.14,0.03]
[1755178251132,1.81178175,193.18,193.14,0.03]
[1755178251133,0.66,193.15,193.14,0.03]
[1755178251714,1.81178175,193.18,193.14,0.03]
[1755178252019,0.66,193.17,193.14,0.03]
[1755178252355,0.66,193.17,193.12,47.32]
[1755178252356,0.66,193.16,193.12,47.32]
[1755178252516,0.51773233,193.15,193.12,47.35]
[1755178252844,0.66,193.14,193.12,44.434935]
[1755178253050,1.30719892,193.14,193.0,0.03]
[1755178253229,26.0,193.13,193.02,47.32]
[1755178253551,1.30726594,193.12,193.02,47.32]
[1755178253731,1.30726594,193.12,193.03,15.10621557]
[1755178253925,0.66,193.11,193.03,15.10621557]
[1755178254248,0.66,193.11,193.02,47.32]
[1755178254412,0.51786639,193.1,193.03,15.10621557]
[1755178254743,1.81253236,193.1,193.03,15.10621557]
[1755178254915,0.66,193.09,193.03,15.10621557]
[1755178256548,26.0,193.07,193.03,15.10621557]
[1755178256749,0.66,193.06,193.02,47.32]
[1755178257047,0.66,193.06,193.02,45.85434592]
[1755178257211,26.0,193.07,193.02,45.85434592]
[1755178257212,0.66,193.05,193.03,15.10621557]
[1755178257417,0.66,193.04,193.0,0.03]
[1755178257630,0.66,193.03,193.01,1e-08]
[1755178257946,0.66,193.03,193.0,47.31]
[1755178257947,0.66,193.02,193.0,47.15535201]
[1755178258114,0.66,193.01,193.0,47.07802801]
[1755178258424,0.66,193.01,193.0,47.00070401]
[1755178258628,0.66,193.01,193.0,46.84605601]
[1755178258941,0.66,193.01,192.94,47.48]
[1755178259540,0.66,193.01,192.95,15.10621557]
[1755178259738,0.64766839,193.0,192.95,15.10621557]
[1755178260042,0.66,192.99,192.94,47.48]
[1755178260248,26.0,193.01,192.94,47.48]
[1755178260412,0.69,193.08,192.95,0.67]
[1755178260748,0.69,193.12,192.95,5.85264263]
[1755178260956,0.69,193.09,192.95,0.67]
[1755178261162,26.0,193.05,192.94,0.2]
[1755178261327,27.33753418,193.04,192.94,0.2]
[1755178261641,27.33753418,193.04,192.84,0.03]
[1755178261642,26.0,192.96,192.84,0.03]
[1755178261861,26.0,192.9,192.84,0.03]
[1755178262044,1.33803774,192.89,192.84,0.03]
[1755178262230,0.69,192.88,192.83,0.2]
[1755178262428,0.69,192.87,192.83,0.2]
[1755178262632,0.69,192.86,192.82,0.03]
[1755178262834,0.69,192.86,192.76,47.29]
[1755178262835,26.69,192.86,192.76,47.29]
[1755178263042,26.0,192.82,192.7,47.27]
[1755178263346,26.0,192.8,192.7,47.27]
[1755178263516,1.33837387,192.79,192.7,47.27]
[1755178263721,26.0,192.76,192.7,1e-08]
[1755178263938,1.33569507,192.75,192.7,1e-08]
[1755178264119,0.69,192.74,192.7,1e-08]
[1755178264444,26.0,192.75,192.7,1e-08]
[1755178264644,4.41573079,192.88,192.59,31.65833202]
[1755178264645,0.69,192.74,192.59,16.11833202]
[1755178264819,26.0,192.69,192.59,16.11833202]
[1755178265019,26.0,192.65,192.58,1e-08]
[1755178265219,1.33887873,192.64,192.54,0.03]
[1755178265416,26.0,192.61,192.54,0.03]
[1755178265629,26.0,192.61,192.48,47.92]
[1755178265630,1.33901349,192.6,192.48,47.24]
[1755178265834,36.0,192.59,192.45,0.2]
[1755178266031,26.0,192.55,192.45,0.2]
[1755178266251,26.0,192.48,192.4,0.2]
[1755178266434,62.32621557,192.67,192.4,1e-08]
[1755178266435,26.0,192.46,192.4,1e-08]
[1755178266636,26.0,192.44,192.4,1e-08]
[1755178266940,1.33958686,192.43,192.29,47.26]
[1755178267144,26.0,192.41,192.24,47.92]
[1755178267356,1.33968814,192.4,192.24,47.92]
[1755178267562,0.64968814,192.4,192.25,0.68]
[1755178267852,5.16317942,192.45,192.25,0.68]
[1755178267853,26.0,192.42,192.25,0.68]
[1755178268154,0.69,192.48,192.27,26.0]
[1755178268358,26.0,192.43,192.28,0.68]
[1755178268573,26.0,192.41,192.21,53.41833202]
[1755178268734,26.0,192.37,192.22,47.92]
[1755178268938,26.0,192.35,192.22,47.24]
[1755178269228,26.0,192.29,192.17,15.598596]
[1755178269456,47.24,192.48,192.17,15.598596]
[1755178269457,26.0,192.24,192.17,15.598596]
[1755178269663,26.0,192.24,192.1,47.22]
[1755178269955,16.93990661,192.28,192.05,15.605088]
[1755178269956,26.0,192.25,192.05,15.605088]
[1755178270252,26.0,192.22,192.06,47.26]
[1755178270562,15.599813,192.28,192.08,10.0]
[1755178270780,15.599813,192.28,192.13,26.11833202]
[1755178271058,15.599813,192.28,192.14,15.10621557]
[1755178271226,26.0,192.25,192.15,47.26]
[1755178271433,26.0,192.25,192.16,15.10621557]
[1755178271882,0.69,192.3,192.16,15.10621557]
[1755178272066,0.69,192.4,192.22,15.10621557]
[1755178272365,15.60103,192.33,192.28,15.10621557]
[1755178272570,0.69,192.45,192.3,15.10621557]
[1755178272733,15.60103,192.34,192.32,15.10621557]
[1755178272929,0.69,192.5,192.32,15.10621557]
[1755178273160,0.69,192.5,192.31,41.10621557]
[1755178273372,7.69309,192.49,192.34,26.0]
[1755178273555,7.69309,192.49,192.34,25.10621557]
[1755178273747,0.69,192.6,192.39,41.10621557]
[1755178274065,10.64904719,192.59,192.41,15.10621557]
[1755178274270,0.69,192.58,192.41,15.10621557]
[1755178274444,1.3390809,192.58,192.45,26.0]
[1755178274649,10.0,192.59,192.54,15.10621557]
[1755178274958,0.69,192.66,192.56,15.10621557]
[1755178275162,8.24091172,192.76,192.56,15.10621557]
[1755178275163,10.0,192.68,192.56,15.10621557]
[1755178275674,10.0,192.68,192.6,15.10621557]
[1755178275854,0.69,192.74,192.6,15.10621557]
[1755178276173,26.0,192.72,192.6,15.10621557]
[1755178276473,1.33864303,192.71,192.6,15.10621557]
[1755178276854,0.69,192.7,192.6,15.10621557]
[1755178277061,0.69,192.75,192.62,15.10621557]
[1755178277246,15.567029,192.79,192.66,15.10621557]
[1755178277668,0.64807133,192.88,192.7,15.10621557]
[1755178277963,0.69,192.93,192.78,15.10621557]
[1755178278176,0.69,192.93,192.78,26.0]
[1755178278348,0.69,192.93,192.79,15.10621557]
[1755178278546,15.566221,192.88,192.81,15.10621557]
[1755178279065,0.06,192.9,192.82,15.10621557]
[1755178279778,0.06,192.9,192.84,15.10621557]
[1755178280281,0.06,192.9,192.88,15.10621557]
[1755178280443,2.07356,193.03,192.92,15.10621557]
[1755178280804,0.69,193.11,192.96,15.10621557]
[1755178281072,0.69,193.11,193.0,15.10621557]
[1755178281249,0.69,193.11,193.02,15.10621557]
[1755178281448,0.69,193.15,193.02,15.10621557]
[1755178281877,0.06,193.07,193.02,15.10621557]
[1755178282168,0.06,193.07,193.04,15.10621557]
[1755178282677,0.69,193.22,193.07,15.10621557]
[1755178282969,2.760983,193.27,193.09,41.10621557]
[1755178283150,0.69,193.18,193.09,62.30621557]
[1755178283351,0.69,193.13,193.09,15.10621557]
[1755178283546,36.0,193.26,193.09,47.2]
[1755178283547,15.10621557,193.21,193.09,47.2]
[1755178283753,4.76508074,193.3,193.09,62.30621557]
[1755178283754,0.69,193.16,193.09,62.30621557]
[1755178283962,0.69,193.21,193.09,62.30621557]
[1755178284169,0.69,193.25,193.09,62.30621557]
[1755178284558,0.69,193.22,193.1,15.10621557]
[1755178284767,0.69,193.22,192.99,15.10621557]
[1755178284973,0.69,193.22,193.01,15.10621557]
[1755178284974,26.0,193.18,193.01,15.10621557]
[1755178285279,41.10621557,193.16,192.98,37.36]
[1755178285473,26.0,193.11,192.98,37.36]
[1755178285650,26.0,193.07,192.98,84.52]
[1755178285975,1.3374671,193.06,192.98,63.63526359]
[1755178286147,0.69,193.06,192.98,63.63526359]
[1755178286348,0.69,193.11,192.99,15.10621557]
[1755178286547,0.64703141,193.19,192.99,15.10621557]
[1755178286847,0.69,193.19,193.07,15.10621557]
[1755178287048,0.69,193.23,193.09,15.10621557]
[1755178287267,0.64669667,193.29,193.08,47.16]
[1755178287268,0.69,193.29,193.17,15.10621557]
[1755178287478,10.0,193.47,193.21,15.10621557]
[1755178287479,0.69,193.34,193.21,15.10621557]
[1755178287651,0.69,193.38,193.25,15.10621557]
[1755178287865,0.69,193.38,193.27,15.10621557]
[1755178288073,0.06,193.44,193.29,41.10621557]
[1755178288464,0.06,193.44,193.34,15.10621557]
[1755178288663,0.06,193.44,193.34,62.24621557]
[1755178289774,0.06,193.44,193.4,15.10621557]
[1755178289972,0.06,193.44,193.42,15.10621557]
[1755178290173,0.06,193.5,193.44,26.0]
[1755178290373,0.06,193.5,193.44,51.10621557]
[1755178290594,0.06,193.5,193.45,15.10621557]
[1755178290798,0.06,193.5,193.45,30.27550996]
[1755178291107,0.1,193.59,193.48,15.10621557]
[1755178291279,0.1,193.59,193.58,15.10621557]
[1755178291602,0.1,193.59,193.58,60.12271557]
[1755178291794,0.1,193.59,193.58,13.02271557]
[1755178292105,0.1,193.64,193.61,26.0]
[1755178292398,0.1,193.64,193.58,60.12271557]
[1755178292399,0.1,193.64,193.62,37.26]
[1755178293187,0.1,193.64,193.63,47.1]
[1755178293598,0.64479521,193.86,193.63,62.20621557]
[1755178293787,0.66,193.79,193.68,15.10621557]
[1755178294105,0.66,193.79,193.63,10.480923]
[1755178294306,26.0,193.75,193.63,10.480923]
[1755178294502,26.0,193.71,193.63,47.04]
[1755178294689,41.10621557,193.69,193.37,12.1576]
[1755178294998,41.10621557,193.69,193.38,89.93891684]
[1755178294999,26.0,193.65,193.38,89.93891684]
[1755178295204,0.66,193.64,193.43,26.0]
[1755178295407,0.66,193.64,193.49,26.0]
[1755178295709,0.66,193.64,193.51,15.10621557]
[1755178295906,0.66,193.64,193.52,47.04]
[1755178296197,0.66,193.64,193.53,15.10621557]
[1755178296405,0.64556112,193.63,193.52,47.04]
[1755178296707,26.0,193.57,193.39,0.16671257]
[1755178296916,0.66,193.56,193.4,47.02]
[1755178297215,0.66,193.56,193.38,37.22]
[1755178297509,1.30579458,193.56,193.41,47.02]
[1755178297689,0.66,193.56,193.41,47.02]
[1755178298001,0.66,193.55,193.41,47.02]
[1755178298176,0.66,193.59,193.46,15.10621557]
[1755178298899,0.66,193.59,193.45,15.10621557]
[1755178299100,0.66,193.59,193.41,47.02]
[1755178299450,0.66,193.59,193.42,15.10621557]
[1755178299620,0.66,193.59,193.38,37.22]
[1755178299914,0.64572786,193.58,193.39,62.10621557]
[1755178300210,0.66,193.57,193.42,26.0]
[1755178300389,0.66,193.63,193.47,15.10621557]
[1755178300581,0.66,193.63,193.49,15.10621557]
[1755178300782,0.66,193.63,193.49,41.10621557]
[1755178300983,0.66,193.67,193.53,15.10621557]
[1755178301215,0.66,193.67,193.53,30.64621557]